bitfinex/quotes_BTCUSD_20240918
["timestamp","ask_amount","ask_price","bid_price","bid_amount"]
[1726695713679,0.2022178,60503.0,60502.0,0.003444]
[1726695714541,0.0369368,60503.0,60502.0,0.003444]
[1726695714969,0.1912178,60503.0,60502.0,0.002444]
[1726695715181,0.165281,60503.0,60502.0,0.005444]
[1726695716083,0.165281,60503.0,60502.0,0.002444]
[1726695716494,0.495843,60503.0,60502.0,0.005444]
[1726695717567,0.495843,60503.0,60502.0,0.002444]
[1726695717771,0.495843,60503.0,60502.0,0.005444]
[1726695717772,0.826405,60503.0,60502.0,0.005444]
[1726695718220,0.826405,60503.0,60502.0,0.002444]
[1726695718419,0.85234174,60503.0,60502.0,0.005444]
[1726695718745,0.85234174,60503.0,60502.0,0.002444]
[1726695718746,1.18290374,60503.0,60502.0,0.002444]
[1726695718952,1.18790374,60503.0,60502.0,0.002444]
[1726695720968,0.03,60501.0,60497.0,0.0039741]
[1726695721188,0.16984939,60498.0,60497.0,0.0039741]
[1726695721405,0.165311,60492.0,60479.0,0.0039741]
[1726695721628,0.495933,60492.0,60480.0,0.165342]
[1726695721859,0.826555,60492.0,60479.0,0.0039741]
[1726695722093,0.826555,60492.0,60480.0,0.165343]
[1726695722308,0.85249511,60492.0,60480.0,0.165343]
[1726695722757,0.85349511,60492.0,60491.0,0.008644]
[1726695723402,1.18411711,60492.0,60491.0,0.008644]
[1726695723847,1.18311711,60492.0,60491.0,0.001644]
[1726695724060,1.18411711,60492.0,60491.0,0.001644]
[1726695724762,0.85349511,60492.0,60491.0,0.001644]
[1726695724969,0.52287311,60492.0,60491.0,0.001644]
[1726695725190,0.496933,60492.0,60491.0,0.001644]
[1726695725416,0.495933,60492.0,60491.0,0.001644]
[1726695725656,0.496933,60492.0,60491.0,0.001644]
[1726695726379,0.166311,60492.0,60491.0,0.001644]
[1726695726900,0.330603,60496.0,60491.0,0.001644]
[1726695727105,0.001,60492.0,60491.0,0.001644]
[1726695727309,0.165311,60492.0,60491.0,0.001644]
[1726695727949,0.165308,60493.0,60491.0,0.001644]
[1726695728147,0.02593909,60492.0,60491.0,0.001644]
[1726695728353,0.19125009,60492.0,60491.0,0.001644]
[1726695729418,0.24786628,60494.0,60491.0,0.001644]
[1726695729653,0.165311,60492.0,60491.0,0.001644]
[1726695730120,0.165307,60494.0,60491.0,0.006644]
[1726695730364,0.165308,60493.0,60491.0,0.006644]
[1726695731009,0.330603,60496.0,60491.0,0.001644]
[1726695731218,0.330606,60495.0,60491.0,0.004644]
[1726695731437,0.16531,60493.0,60491.0,0.001644]
[1726695731852,0.16531,60493.0,60491.0,0.005644]
[1726695732272,0.330606,60495.0,60491.0,0.005644]
[1726695732948,0.330606,60495.0,60491.0,0.001644]
[1726695732949,0.165308,60494.0,60491.0,0.001644]
[1726695733366,0.165308,60494.0,60491.0,0.002644]
[1726695733573,0.02593865,60497.0,60491.0,0.002644]
[1726695733787,0.165306,60494.0,60491.0,0.002644]
[1726695734020,0.165306,60494.0,60491.0,0.001644]
[1726695734439,0.165306,60494.0,60491.0,0.004644]
[1726695735575,0.165301,60496.0,60491.0,0.169956]
[1726695735798,0.165301,60496.0,60492.0,0.16531]
[1726695736862,0.165301,60496.0,60492.0,0.16931]
[1726695737320,0.165303,60495.0,60492.0,0.004]
[1726695738477,0.02593768,60498.0,60492.0,0.16931]
[1726695738703,0.02593768,60498.0,60493.0,0.165307]
[1726695738944,0.1653,60496.0,60492.0,0.004]
[1726695739226,0.165303,60495.0,60491.0,0.166955]
[1726695739433,0.165303,60495.0,60492.0,0.005]
[1726695739638,0.165303,60495.0,60491.0,0.166955]
[1726695740050,0.165303,60495.0,60493.0,0.001]
[1726695740263,0.165303,60495.0,60491.0,0.166955]
[1726695740672,0.165303,60495.0,60492.0,0.005]
[1726695740885,0.165303,60495.0,60491.0,0.166955]
[1726695741333,0.33142,60497.0,60492.0,0.16531]
[1726695741553,0.165301,60496.0,60492.0,0.16531]
[1726695741767,0.33142,60497.0,60491.0,0.166957]
[1726695741999,0.000823,60497.0,60492.0,0.0976]
[1726695742252,0.000823,60497.0,60495.0,0.165301]
[1726695742685,0.000823,60497.0,60496.0,0.1653]
[1726695744238,0.000823,60497.0,60496.0,0.1683]
[1726695744901,0.000823,60497.0,60496.0,0.003]
[1726695752936,0.000823,60497.0,60496.0,0.1683]
[1726695754911,0.000823,60497.0,60496.0,0.4989]
[1726695755347,0.000823,60497.0,60496.0,0.8295]
[1726695755558,0.000823,60497.0,60496.0,0.8265]
[1726695755767,0.000823,60497.0,60496.0,0.8295]
[1726695757712,0.000823,60497.0,60496.0,1.1601]
[1726695758784,0.000823,60497.0,60496.0,1.1571]
[1726695759001,0.000823,60497.0,60496.0,1.1701]
[1726695760366,0.000823,60497.0,60496.0,1.1931]
[1726695760572,0.000823,60497.0,60496.0,1.44935367]
[1726695762563,0.000823,60497.0,60496.0,1.45099967]
[1726695767732,0.000823,60497.0,60496.0,1.55099967]
[1726695782895,0.02675494,60497.0,60496.0,1.55099967]
[1726695783778,0.000823,60497.0,60496.0,1.55099967]
[1726695786846,0.000823,60497.0,60496.0,1.57022574]
[1726695787058,0.000823,60497.0,60496.0,1.55099967]
[1726695787271,0.000823,60497.0,60496.0,1.57022574]
[1726695787480,0.0267556,60497.0,60496.0,1.55099967]
[1726695787691,0.0267556,60497.0,60496.0,1.57022574]
[1726695787911,0.0267556,60497.0,60496.0,1.55099967]
[1726695788118,0.0267556,60497.0,60496.0,1.57022574]
[1726695788335,0.000823,60497.0,60496.0,1.57022574]
[1726695788600,0.000823,60497.0,60496.0,1.57022604]
[1726695791682,0.02675507,60497.0,60496.0,1.57022604]
[1726695791890,0.000823,60497.0,60496.0,1.55099967]
[1726695792090,0.000823,60497.0,60496.0,1.57023334]
[1726695793597,0.000823,60497.0,60496.0,1.61955921]
[1726695795688,0.000823,60497.0,60496.0,1.60035989]
[1726695795928,0.000823,60497.0,60496.0,1.61960151]
[1726695796651,0.000823,60497.0,60496.0,1.57024129]
[1726695797497,0.000823,60497.0,60496.0,1.64428162]
[1726695798544,0.000823,60497.0,60496.0,1.88865011]
[1726695800480,0.000823,60497.0,60496.0,1.88842643]
[1726695800715,0.000823,60497.0,60496.0,1.81440243]
[1726695802286,0.000823,60497.0,60496.0,1.9131011]
[1726695803626,0.000823,60497.0,60496.0,1.81440243]
[1726695805629,0.000823,60497.0,60496.0,1.93777577]
[1726695806134,0.000823,60497.0,60496.0,1.93770846]
[1726695806380,0.000823,60497.0,60496.0,1.58793415]
[1726695806619,0.000823,60497.0,60496.0,1.48373492]
[1726695808197,0.000823,60497.0,60496.0,1.46456081]
[1726695808442,0.000823,60497.0,60496.0,1.48330509]
[1726695808685,0.000823,60497.0,60496.0,1.60667843]
[1726695810034,0.000823,60497.0,60496.0,1.60593518]
[1726695812315,0.000823,60497.0,60496.0,1.60592434]
[1726695813182,0.000823,60497.0,60496.0,1.59292434]
[1726695813431,0.000823,60497.0,60496.0,1.57421108]
[1726695813664,0.000823,60497.0,60496.0,1.60692655]
[1726695813898,0.02675546,60497.0,60496.0,1.60692655]
[1726695814787,0.02675546,60497.0,60496.0,1.93752655]
[1726695815008,0.02675546,60497.0,60496.0,1.60692655]
[1726695815711,0.02675546,60497.0,60496.0,1.48340429]
[1726695815924,0.02675546,60497.0,60496.0,1.81400429]
[1726695816147,0.000823,60497.0,60496.0,1.81400429]
[1726695816883,0.000823,60497.0,60496.0,1.48340429]
[1726695817558,0.000823,60497.0,60496.0,1.81398002]
[1726695818235,0.000823,60497.0,60496.0,1.60684129]
[1726695818694,0.000823,60497.0,60496.0,1.48338002]
[1726695819123,0.000823,60497.0,60496.0,1.20412635]
[1726695819354,0.000823,60497.0,60496.0,1.20388643]
[1726695820491,0.000823,60497.0,60496.0,1.4823401]
[1726695820967,0.000823,60497.0,60496.0,1.81288541]
[1726695821397,0.000823,60497.0,60496.0,1.79888541]
[1726695821618,0.000823,60497.0,60496.0,1.81288541]
[1726695822988,0.000823,60497.0,60496.0,1.79888541]
[1726695823258,0.000823,60497.0,60496.0,1.81288541]
[1726695823476,0.000823,60497.0,60496.0,1.79888541]
[1726695823703,0.000823,60497.0,60496.0,1.86196541]
[1726695823933,0.000823,60497.0,60496.0,1.87596541]
[1726695824196,0.000823,60497.0,60496.0,1.89508678]
[1726695824441,0.000823,60497.0,60496.0,1.87796541]
[1726695824665,0.000823,60497.0,60496.0,1.86190833]
[1726695824885,0.000823,60497.0,60496.0,1.86390833]
[1726695825641,0.000823,60497.0,60496.0,1.94190833]
[1726695826091,0.000823,60497.0,60496.0,1.95590833]
[1726695826363,0.000823,60497.0,60496.0,1.94190833]
[1726695826601,0.000823,60497.0,60496.0,2.06764508]
[1726695827802,0.000823,60497.0,60496.0,2.36720816]
[1726695828051,0.000823,60497.0,60496.0,2.51206482]
[1726695828302,0.000823,60497.0,60496.0,2.45816666]
[1726695828557,0.000823,60497.0,60496.0,2.18138506]
[1726695828809,0.000823,60497.0,60496.0,2.14739933]
[1726695829058,0.000823,60497.0,60496.0,2.16651824]
[1726695829565,0.000823,60497.0,60496.0,2.06878149]
[1726695829821,0.000823,60497.0,60496.0,2.19060712]
[1726695830808,0.000823,60497.0,60496.0,1.98687037]
[1726695831063,0.000823,60497.0,60496.0,2.12860712]
[1726695831327,0.000823,60497.0,60496.0,2.09860712]
[1726695831586,0.000823,60497.0,60496.0,2.07778307]
[1726695831831,0.000823,60497.0,60496.0,2.04466416]
[1726695832053,0.000823,60497.0,60496.0,2.09848276]
[1726695834036,0.000823,60497.0,60496.0,2.02048276]
[1726695834551,0.000823,60497.0,60496.0,1.90874601]
[1726695834795,0.000823,60497.0,60496.0,1.98736362]
[1726695835030,0.000823,60497.0,60496.0,1.90874601]
[1726695835294,0.000823,60497.0,60496.0,1.89036957]
[1726695835539,0.000823,60497.0,60496.0,1.98727551]
[1726695836014,0.000823,60497.0,60496.0,2.01727551]
[1726695836265,0.000823,60497.0,60496.0,2.02039465]
[1726695836992,0.000823,60497.0,60496.0,2.05039465]
[1726695837220,0.000823,60497.0,60496.0,2.11039465]
[1726695838174,0.000823,60497.0,60496.0,2.05013398]
[1726695838403,0.000823,60497.0,60496.0,1.71953398]
[1726695838618,0.000823,60497.0,60496.0,1.68953398]
[1726695838841,0.000823,60497.0,60496.0,1.65641484]
[1726695839073,0.000823,60497.0,60496.0,1.6564636]
[1726695839312,0.000823,60497.0,60496.0,1.6864636]
[1726695839573,0.000823,60497.0,60496.0,1.68646357]
[1726695839814,0.000823,60497.0,60496.0,1.65646357]
[1726695840033,0.000823,60497.0,60496.0,1.68646357]
[1726695840260,0.000823,60497.0,60496.0,1.65646357]
[1726695840505,0.000823,60497.0,60496.0,1.45232682]
[1726695840751,0.000823,60497.0,60496.0,1.55741019]
[1726695840994,0.000823,60497.0,60496.0,0.56319438]
[1726695841237,0.000823,60497.0,60496.0,0.32968427]
[1726695841479,0.000823,60497.0,60496.0,0.09810575]
[1726695841700,0.000823,60497.0,60496.0,0.015646]
[1726695842457,0.000823,60497.0,60496.0,0.001646]
[1726695843363,0.000823,60497.0,60496.0,0.015646]
[1726695843583,0.000823,60497.0,60496.0,0.001646]
[1726695843806,0.16612,60497.0,60496.0,0.001646]
[1726695844030,0.16612,60497.0,60496.0,0.015646]
[1726695844729,0.16612,60497.0,60496.0,0.001646]
[1726695844960,0.496714,60497.0,60496.0,0.001646]
[1726695845176,0.827308,60497.0,60496.0,0.015646]
[1726695845415,0.922708,60497.0,60496.0,0.015646]
[1726695846336,0.94864559,60497.0,60496.0,0.015646]
[1726695847450,1.27923959,60497.0,60496.0,0.015646]
[1726695848858,1.35633959,60497.0,60496.0,0.015646]
[1726695849556,1.35633959,60497.0,60496.0,0.001646]
[1726695850041,1.35633959,60497.0,60496.0,0.002646]
[1726695850265,1.35633959,60497.0,60496.0,0.001646]
[1726695850488,1.35633959,60497.0,60491.0,9.58e-05]
[1726695850489,0.165311,60492.0,60491.0,9.58e-05]
[1726695850733,0.826555,60492.0,60491.0,9.58e-05]
[1726695850949,1.251077,60492.0,60491.0,9.58e-05]
[1726695853025,1.36281375,60492.0,60491.0,9.58e-05]
[1726695853465,1.36281375,60492.0,60491.0,0.0010958]
[1726695854419,1.36281375,60492.0,60491.0,9.58e-05]
[1726695854694,1.36481375,60492.0,60491.0,9.58e-05]
[1726695857458,1.69543575,60492.0,60491.0,9.58e-05]
[1726695858337,1.72137861,60492.0,60491.0,9.58e-05]
[1726695864289,1.82137861,60492.0,60491.0,9.58e-05]
[1726695866541,1.82337861,60492.0,60491.0,9.58e-05]
[1726695867247,1.82502261,60492.0,60491.0,9.58e-05]
[1726695868420,1.79907975,60492.0,60491.0,9.58e-05]
[1726695869176,1.82502408,60492.0,60491.0,9.58e-05]
[1726695871909,1.85502408,60492.0,60491.0,9.58e-05]
[1726695873510,1.92817803,60492.0,60491.0,9.58e-05]
[1726695875556,2.027948,60491.0,60490.0,0.0013]
[1726695875770,0.60772675,60485.0,60484.0,0.001644]
[1726695875974,0.93838675,60485.0,60484.0,0.001644]
[1726695876181,1.60170675,60485.0,60484.0,0.001644]
[1726695876390,1.59970675,60485.0,60484.0,0.001644]
[1726695876612,1.62565346,60485.0,60484.0,0.001644]
[1726695876824,1.69930675,60485.0,60484.0,0.001644]
[1726695877331,1.7582178,60485.0,60484.0,0.002644]
[1726695877579,1.73130675,60485.0,60484.0,0.002644]
[1726695877821,1.72930675,60485.0,60484.0,0.002644]
[1726695878716,1.82930675,60485.0,60484.0,0.002644]
[1726695879001,1.83130675,60485.0,60484.0,0.002644]
[1726695879203,1.90643534,60485.0,60484.0,0.002644]
[1726695880359,2.06933627,60485.0,60484.0,0.002644]
[1726695880586,2.06933627,60485.0,60484.0,0.001644]
[1726695880806,2.07533627,60485.0,60484.0,0.002644]
[1726695880949,2.08520082,60485.0,60484.0,0.002644]
[1726695882571,2.47586082,60485.0,60484.0,0.002644]
[1726695882776,2.46986082,60485.0,60484.0,0.001644]
[1726695883009,2.47986082,60485.0,60484.0,0.002644]
[1726695883274,2.46986082,60485.0,60484.0,0.001644]
[1726695883885,2.47986082,60485.0,60484.0,0.001644]
[1726695884121,1.88712775,60480.0,60479.0,0.0039741]
[1726695884379,2.09939468,60480.0,60479.0,0.0039741]
[1726695884593,2.50968168,60480.0,60479.0,0.0039741]
[1726695884807,2.3465961,60480.0,60479.0,0.0039741]
[1726695885458,2.0159091,60480.0,60479.0,0.0039741]
[1726695885924,2.0139091,60480.0,60479.0,0.0039741]
[1726695886146,2.0249091,60480.0,60479.0,0.0039741]
[1726695886346,2.0139091,60480.0,60479.0,0.0039741]
[1726695886561,2.0249091,60480.0,60479.0,0.0039741]
[1726695887017,2.0269091,60480.0,60479.0,0.0039741]
[1726695889646,1.91517235,60480.0,60479.0,0.0039741]
[1726695889902,2.0269091,60480.0,60479.0,0.0039741]
[1726695890328,2.0269091,60480.0,60479.0,0.0047961]
[1726695890544,2.18799468,60480.0,60479.0,0.0047961]
[1726695890798,2.0249091,60480.0,60479.0,0.0047961]
[1726695891029,2.05286026,60480.0,60479.0,0.0047961]
[1726695891687,2.10226723,60480.0,60479.0,0.0047961]
[1726695892809,2.05286026,60480.0,60479.0,0.0047961]
[1726695893036,2.26540015,60480.0,60479.0,0.0047961]
[1726695893268,2.21594584,60480.0,60479.0,0.0047961]
[1726695893481,2.2880563,60480.0,60479.0,0.0047961]
[1726695893704,2.10032286,60480.0,60479.0,0.0047961]
[1726695894385,2.05286026,60480.0,60479.0,0.0047961]
[1726695894838,2.12705416,60480.0,60479.0,0.0047961]
[1726695895067,2.099103,60480.0,60479.0,0.0047961]
[1726695895556,2.0269091,60480.0,60479.0,0.0047961]
[1726695895796,2.18999468,60480.0,60479.0,0.0047961]
[1726695896025,2.07825793,60480.0,60479.0,0.0047961]
[1726695896271,2.4318141,60480.0,60479.0,0.0047961]
[1726695896510,2.3575961,60480.0,60479.0,0.0047961]
[1726695896734,2.456569,60480.0,60479.0,0.0047961]
[1726695896954,2.3575961,60480.0,60479.0,0.0047961]
[1726695897422,2.0269091,60480.0,60479.0,0.0047961]
[1726695897651,2.18999468,60480.0,60479.0,0.0047961]
[1726695897898,2.31365119,60480.0,60479.0,0.0047961]
[1726695898368,2.33965981,60480.0,60479.0,0.0047961]
[1726695899748,2.54663292,60480.0,60479.0,0.0047961]
[1726695899979,2.31491335,60480.0,60479.0,0.0047961]
[1726695900408,2.33966093,60480.0,60479.0,0.0047961]
[1726695900843,2.05286034,60480.0,60479.0,0.0047961]
[1726695901325,2.17657576,60480.0,60479.0,0.0047961]
[1726695901790,2.05286034,60480.0,60479.0,0.0047961]
[1726695902014,1.87796034,60480.0,60479.0,0.0047961]
[1726695902756,2.00168574,60480.0,60479.0,0.0047961]
[1726695902992,2.14638854,60480.0,60479.0,0.0047961]
[1726695903736,2.02266314,60480.0,60479.0,0.0047961]
[1726695904237,2.02466314,60480.0,60479.0,0.0047961]
[1726695907049,1.87796034,60480.0,60479.0,0.0047961]
[1726695907301,1.99972851,60480.0,60479.0,0.0047961]
[1726695907545,1.90972851,60480.0,60479.0,0.0047961]
[1726695907792,1.78596034,60480.0,60479.0,0.0047961]
[1726695908277,1.88499014,60480.0,60479.0,0.0047961]
[1726695908523,1.78596034,60480.0,60479.0,0.0047961]
[1726695908801,1.90976338,60480.0,60479.0,0.0047961]
[1726695909046,2.04468019,60480.0,60479.0,0.0047961]
[1726695909297,1.90987715,60480.0,60479.0,0.0047961]
[1726695909541,2.04268019,60480.0,60479.0,0.0047961]
[1726695909769,2.03368019,60480.0,60479.0,0.0047961]
[1726695910035,2.04268019,60480.0,60479.0,0.0047961]
[1726695910271,1.91887715,60480.0,60479.0,0.0047961]
[1726695911013,1.93781425,60480.0,60479.0,0.0047961]
[1726695911499,1.81396034,60480.0,60479.0,0.0047961]
[1726695913405,1.78396034,60480.0,60479.0,0.0047961]
[1726695918261,1.7580091,60480.0,60479.0,0.0047961]
[1726695921180,1.78395829,60480.0,60479.0,0.0047961]
[1726695923982,1.45327129,60480.0,60479.0,0.0047961]
[1726695925118,1.4273221,60480.0,60479.0,0.0047961]
[1726695928369,1.45327108,60480.0,60479.0,0.0047961]
[1726695928606,1.45327108,60480.0,60479.0,0.0981961]
[1726695929591,1.4273221,60480.0,60479.0,0.0981961]
[1726695932454,1.45327076,60480.0,60479.0,0.0981961]
[1726695935201,1.4273221,60480.0,60479.0,0.0981961]
[1726695938449,1.45327077,60480.0,60479.0,0.0981961]
[1726695939135,1.41264661,60480.0,60479.0,0.0981961]
[1726695939672,1.38669794,60480.0,60479.0,0.0981961]
[1726695940905,1.38669794,60480.0,60479.0,0.0047961]
[1726695942342,1.41264705,60480.0,60479.0,0.0047961]
[1726695945109,1.38669794,60480.0,60479.0,0.0047961]
[1726695948397,1.41264712,60480.0,60479.0,0.0047961]
[1726695949592,1.38669794,60480.0,60479.0,0.0047961]
[1726695952412,1.41264752,60480.0,60479.0,0.0047961]
[1726695953108,1.30091077,60480.0,60479.0,0.0047961]
[1726695953322,1.44986012,60480.0,60479.0,0.0047961]
[1726695954918,1.30091077,60480.0,60479.0,0.0047961]
[1726695955143,1.42391054,60480.0,60479.0,0.0047961]
[1726695958278,1.44985988,60480.0,60479.0,0.0047961]
[1726695960780,1.44998029,60480.0,60479.0,0.0047961]
[1726695961503,1.30091053,60480.0,60479.0,0.0047961]
[1726695961761,1.44998029,60480.0,60479.0,0.0047961]
[1726695962210,1.45162429,60480.0,60479.0,0.0047961]
[1726695964064,1.30255453,60480.0,60479.0,0.0047961]
[1726695964292,1.93806386,60480.0,60479.0,0.0047961]
[1726695964541,2.03286386,60480.0,60479.0,0.0047961]
[1726695964764,1.86977828,60480.0,60479.0,0.0047961]
[1726695964992,1.86077828,60480.0,60479.0,0.0047961]
[1726695965242,1.84682894,60480.0,60479.0,0.0047961]
[1726695965470,1.83482894,60480.0,60479.0,0.0047961]
[1726695965694,1.84682894,60480.0,60479.0,0.0047961]
[1726695966159,2.06991452,60480.0,60479.0,0.0047961]
[1726695966387,2.07453242,60480.0,60479.0,0.0047961]
[1726695967074,2.39321942,60480.0,60479.0,0.0047961]
[1726695967314,1.90782894,60480.0,60479.0,0.0047961]
[1726695967755,2.40621942,60480.0,60479.0,0.0046961]
[1726695967970,2.42021942,60480.0,60479.0,0.0046961]
[1726695968188,2.08953242,60480.0,60479.0,0.0046961]
[1726695968420,2.2784676,60480.0,60479.0,0.0046961]
[1726695968682,2.2514676,60480.0,60479.0,0.0046961]
[1726695968945,2.2654676,60480.0,60479.0,0.0046961]
[1726695969143,2.43317108,60480.0,60479.0,0.0045961]
[1726695969596,2.2654676,60480.0,60479.0,0.0045961]
[1726695970760,2.2514676,60480.0,60479.0,0.0045961]
[1726695970977,2.2654676,60480.0,60479.0,0.0045961]
[1726695971462,2.2794676,60480.0,60479.0,0.0045961]
[1726695971938,2.2514676,60480.0,60479.0,0.0045961]
[1726695972194,2.42855318,60480.0,60479.0,0.0045961]
[1726695974379,2.2654676,60480.0,60479.0,0.0045961]
[1726695974863,2.2634676,60480.0,60479.0,0.0045961]
[1726695975229,2.24414594,60480.0,60479.0,0.0045961]
[1726695975472,2.24614594,60480.0,60479.0,0.0045961]
[1726695978634,2.27209941,60480.0,60479.0,0.0045961]
[1726695981286,2.27209941,60480.0,60479.0,0.0044961]
[1726695981522,2.27209941,60480.0,60479.0,0.0043961]
[1726695985355,2.43953427,60480.0,60479.0,0.0043961]
[1726695988765,2.4135808,60480.0,60479.0,0.0043961]
[1726695990822,2.3207808,60480.0,60479.0,0.0043961]
[1726695991073,2.37212963,60480.0,60479.0,0.0043961]
[1726695991326,2.50981905,60480.0,60479.0,0.0043961]
[1726695994023,2.34673347,60480.0,60479.0,0.0043961]
[1726695994769,2.17929861,60480.0,60479.0,0.0043961]
[1726695999230,1.78997675,60474.0,60473.0,0.0031897]
[1726695999510,1.8391581,60474.0,60473.0,0.0031897]
[1726696000199,2.1698781,60474.0,60473.0,0.0031897]
[1726696000700,2.1838781,60474.0,60473.0,0.0031897]
[1726696003879,1.7631581,60474.0,60473.0,0.0031897]
[1726696005288,1.77302039,60474.0,60473.0,0.0031897]
[1726696006018,1.80302039,60474.0,60473.0,0.0031897]
[1726696010904,1.80302039,60474.0,60473.0,0.0040117]
[1726696011336,1.97054835,60474.0,60473.0,0.0040117]
[1726696011554,1.80302039,60474.0,60473.0,0.0040117]
[1726696012229,1.948993,60473.0,60472.0,0.001646]
[1726696012465,1.99817435,60473.0,60472.0,0.001646]
[1726696013147,2.02412723,60473.0,60472.0,0.001646]
[1726696013636,2.13586398,60473.0,60472.0,0.001646]
[1726696013866,2.14886398,60473.0,60472.0,0.001646]
[1726696014329,2.14886398,60473.0,60472.0,0.001546]
[1726696015245,2.01117435,60473.0,60472.0,0.001546]
[1726696015469,2.1229111,60473.0,60472.0,0.001546]
[1726696017889,2.28599668,60473.0,60472.0,0.001546]
[1726696018122,2.31195087,60473.0,60472.0,0.001546]
[1726696019264,2.14886529,60473.0,60472.0,0.001546]
[1726696021965,2.11886529,60473.0,60472.0,0.001546]
[1726696022197,2.14886529,60473.0,60472.0,0.001546]
[1726696027588,2.15086529,60473.0,60472.0,0.001546]
[1726696028033,2.14886529,60473.0,60472.0,0.001546]
[1726696028254,2.15086529,60473.0,60472.0,0.001546]
[1726696028790,2.31395087,60473.0,60472.0,0.001546]
[1726696029050,2.30095087,60473.0,60472.0,0.001546]
[1726696029508,2.31295087,60473.0,60472.0,0.001546]
[1726696033168,2.28699668,60473.0,60472.0,0.001546]
[1726696033894,2.28699668,60473.0,60472.0,0.001446]
[1726696034114,2.1239111,60473.0,60472.0,0.001446]
[1726696034600,2.1099111,60473.0,60472.0,0.001446]
[1726696035054,2.1239111,60473.0,60472.0,0.001446]
[1726696035549,2.1379111,60473.0,60472.0,0.001446]
[1726696035795,2.13318198,60473.0,60472.0,0.001346]
[1726696036010,2.1395551,60473.0,60472.0,0.001346]
[1726696037240,2.1095551,60473.0,60472.0,0.001346]
[1726696037460,2.1395551,60473.0,60472.0,0.001346]
[1726696039357,2.16550936,60473.0,60472.0,0.001346]
[1726696039822,2.32859494,60473.0,60472.0,0.001346]
[1726696040345,2.16550936,60473.0,60472.0,0.001246]
[1726696040578,2.13550936,60473.0,60472.0,0.001246]
[1726696040828,2.00014636,60473.0,60472.0,0.001246]
[1726696041067,2.16788429,60473.0,60472.0,0.001246]
[1726696041528,2.00014636,60473.0,60472.0,0.001246]
[1726696041823,2.16788429,60473.0,60472.0,0.001246]
[1726696042065,2.16550936,60473.0,60472.0,0.001246]
[1726696042777,2.33324729,60473.0,60472.0,0.001246]
[1726696042990,2.16550936,60473.0,60472.0,0.001246]
[1726696043435,2.33324729,60473.0,60472.0,0.001246]
[1726696044487,2.16550936,60473.0,60472.0,0.001246]
[1726696044710,2.33324729,60473.0,60472.0,0.001246]
[1726696045178,2.30729303,60473.0,60472.0,0.001246]
[1726696048057,2.33324705,60473.0,60472.0,0.001246]
[1726696048287,2.33325113,60473.0,60472.0,0.001246]
[1726696050801,2.16550912,60473.0,60472.0,0.001246]
[1726696052364,2.16550912,60473.0,60472.0,0.001146]
[1726696054233,2.16750912,60473.0,60472.0,0.001146]
[1726696054464,2.16550912,60473.0,60472.0,0.001146]
[1726696055362,2.22550912,60473.0,60472.0,0.001146]
[1726696055583,2.48817012,60473.0,60472.0,0.001146]
[1726696056431,2.39327012,60473.0,60472.0,0.001146]
[1726696058780,2.5563557,60473.0,60472.0,0.001146]
[1726696059355,2.3952518,60473.0,60472.0,0.001146]
[1726696059568,2.22750912,60473.0,60472.0,0.001146]
[1726696060266,2.39525203,60473.0,60472.0,0.001146]
[1726696060461,2.00902,60472.0,60471.0,0.0002]
[1726696060765,2.26455495,60472.0,60471.0,1e-06]
[1726696060975,2.26455495,60472.0,60461.0,0.0038751]
[1726696060976,1.488537,60462.0,60461.0,0.0038751]
[1726696061187,1.7494551,60462.0,60461.0,0.0038751]
[1726696061562,1.7794551,60462.0,60461.0,0.0038751]
[1726696061963,1.92856561,60462.0,60461.0,0.0038751]
[1726696062958,1.7794551,60462.0,60461.0,0.0038751]
[1726696063377,1.92853783,60462.0,60461.0,0.0038751]
[1726696063783,1.93553783,60462.0,60461.0,0.0038751]
[1726696063979,1.96149421,60462.0,60461.0,0.0038751]
[1726696064191,2.28528021,60462.0,60461.0,0.0038751]
[1726696064396,2.14919748,60462.0,60461.0,0.0038751]
[1726696065239,2.13619748,60462.0,60461.0,0.0038751]
[1726696065447,2.35928306,60462.0,60461.0,0.0038751]
[1726696065653,2.29089748,60462.0,60461.0,0.0037751]
[1726696065860,2.4586468,60462.0,60461.0,0.0037751]
[1726696066101,2.4816468,60462.0,60461.0,1e-07]
[1726696066303,2.31389748,60462.0,60461.0,1e-07]
[1726696066508,2.32789748,60462.0,60461.0,1e-07]
[1726696066893,2.65648778,60462.0,60461.0,1e-07]
[1726696067366,3.00127378,60462.0,60461.0,1e-07]
[1726696067571,2.83364321,60462.0,60461.0,1e-07]
[1726696067772,2.67055763,60462.0,60461.0,1e-07]
[1726696067971,2.65655763,60462.0,60461.0,1e-07]
[1726696068379,2.67055763,60462.0,60461.0,1e-07]
[1726696071334,2.55882088,60462.0,60461.0,1e-07]
[1726696071533,2.56046488,60462.0,60461.0,1e-07]
[1726696071978,2.72355046,60462.0,60461.0,1e-07]
[1726696072183,2.56046488,60462.0,60461.0,1e-07]
[1726696073522,1.57878,60452.0,60448.0,0.24959423]
[1726696073753,1.93894236,60452.0,60448.0,0.24959423]
[1726696073949,1.93894236,60452.0,60448.0,0.001646]
[1726696074207,1.96490307,60452.0,60448.0,0.001646]
[1726696074456,1.96489266,60452.0,60448.0,0.001646]
[1726696074935,1.97789266,60452.0,60448.0,0.001646]
[1726696075422,1.95193195,60452.0,60448.0,0.001646]
[1726696076050,1.8526981,60452.0,60448.0,0.001646]
[1726696076765,2.35738242,60452.0,60448.0,0.001646]
[1726696076993,2.35738242,60452.0,60451.0,1e-06]
[1726696076994,2.2085381,60452.0,60451.0,1e-06]
[1726696077237,2.1955381,60452.0,60451.0,1e-06]
[1726696077482,2.3583068,60452.0,60451.0,1e-06]
[1726696077694,2.3443068,60452.0,60451.0,1e-06]
[1726696078114,2.3583068,60452.0,60451.0,1e-06]
[1726696078335,2.38427092,60452.0,60451.0,1e-06]
[1726696078614,2.23550222,60452.0,60451.0,1e-06]
[1726696078889,2.30122153,60452.0,60451.0,1e-06]
[1726696079367,2.23550222,60452.0,60451.0,1e-06]
[1726696079625,1.81371475,60444.0,60443.0,0.0038741]
[1726696079856,1.81371475,60444.0,60443.0,0.0037741]
[1726696079857,1.98881927,60444.0,60443.0,0.0037741]
[1726696080100,2.0136039,60444.0,60443.0,0.0037741]
[1726696080549,2.03957054,60444.0,60443.0,0.0037741]
[1726696080998,1.704027,60442.0,60435.0,0.001646]
[1726696081215,1.75320835,60442.0,60435.0,0.001646]
[1726696081688,1.42296675,60437.0,60435.0,0.001646]
[1726696081933,1.57124341,60437.0,60435.0,0.001646]